bitfinex-derivatives/quotes_ETHF0:USTF0_20250417
["timestamp","ask_amount","ask_price","bid_price","bid_amount"]
[1744852774999,4.272,1586.5,1586.4,2.94099435]
[1744852775699,4.272,1586.6,1586.5,1.26073]
[1744852775901,4.26276145,1586.6,1586.5,1.26073]
[1744852776606,4.26276145,1586.6,1586.5,6.26073]
[1744852777106,0.00945239,1586.7,1586.6,1.26065]
[1744852777506,9.1978,1587.1,1586.7,3.15135]
[1744852777507,4.273,1587.1,1586.7,3.15135]
[1744852777699,4.273,1587.1,1587.0,1.26034]
[1744852779507,0.00945239,1587.2,1587.1,1.26026]
[1744852779705,4.28245239,1587.2,1587.1,1.26026]
[1744852782806,1.26968239,1587.2,1587.0,1.26029]
[1744852783209,1.26029,1587.1,1586.9,7.0978729]
[1744852783913,1.26034,1587.0,1586.8,2.13774]
[1744852784114,4.273,1587.0,1586.9,1.26041]
[1744852784814,5.53338,1587.0,1586.8,2.13776]
[1744852785016,1.26041,1586.9,1586.8,0.8773]
[1744852785306,7.4808,1587.0,1586.8,2.13777]
[1744852785307,9.2203,1587.0,1586.8,2.13777]
[1744852785512,10.48071,1587.0,1586.8,2.13777]
[1744852785909,1.26041,1586.9,1586.8,2.13777]
[1744852786114,1.26041,1586.9,1586.7,1.26052]
[1744852786412,2.99991,1586.9,1586.7,1.26052]
[1744852787119,2.99991,1586.9,1586.8,1.26049]
[1744852787509,2.99991,1586.9,1586.7,1.26052]
[1744852787813,3.2078,1586.8,1586.5,0.84025239]
[1744852788015,5.53459,1586.7,1586.5,2.10091239]
[1744852788216,7.21079,1586.7,1586.5,2.10091239]
[1744852789117,1.26065,1586.6,1586.5,0.00945239]
[1744852789311,2.93685,1586.6,1586.5,0.00945239]
[1744852789719,6.14465,1586.6,1586.5,0.00945239]
[1744852792416,3.2078,1586.6,1586.5,1.27018239]
[1744852792616,7.19915,1586.7,1586.5,1.27018239]
[1744852792817,7.19915,1586.7,1586.6,1.7107]
[1744852793617,8.81735,1586.7,1586.6,1.7107]
[1744852795413,3.2827,1586.7,1586.6,1.7107]
[1744852795614,1.26044,1586.9,1586.6,1.7107]
[1744852795820,4.274,1586.8,1586.7,1.26057]
[1744852796021,4.274,1586.8,1586.7,4.29142649]
[1744852796816,4.274,1586.8,1586.7,1.6955]
[1744852796817,5.53449,1586.8,1586.7,1.6955]
[1744852797019,4.274,1586.8,1586.7,1.6955]
[1744852797218,4.274,1586.8,1586.7,3.45171568]
[1744852797427,4.274,1586.8,1586.7,3.4518661]
[1744852797615,4.274,1586.8,1586.7,3.45191081]
[1744852800031,5.53449,1586.8,1586.7,2.19134081]
[1744852800327,7.12829,1586.8,1586.7,2.19134081]
[1744852800527,7.12829,1586.8,1586.7,1.6955]
[1744852800729,7.12829,1586.8,1586.6,1.26063]
[1744852800928,7.12829,1586.8,1586.7,1.6336]
[1744852801128,7.12829,1586.8,1586.7,2.89417]
[1744852801431,7.12829,1586.8,1586.7,3.39059801]
[1744852801631,7.12829,1586.8,1586.7,2.13002801]
[1744852802019,7.12829,1586.8,1586.7,1.6336]
[1744852802223,7.12829,1586.8,1586.7,2.12999756]
[1744852803030,4.274,1586.8,1586.7,2.12995484]
[1744852803329,4.274,1586.8,1586.7,3.39052484]
[1744852806528,5.53449,1586.8,1586.7,3.39052484]
[1744852806725,1.26062,1586.7,1586.5,1.27013239]
[1744852807019,3.3131,1586.7,1586.6,1.75709067]
[1744852807733,0.8224,1586.7,1586.6,1.75709067]
[1744852808735,4.274,1586.8,1586.7,1.26057]
[1744852809041,3.2078,1586.9,1586.8,1.26049]
[1744852809331,7.4818,1586.9,1586.8,1.26049]
[1744852809534,7.4818,1586.9,1586.8,2.86069]
[1744852809721,0.8024,1587.1,1587.0,1.26034]
[1744852809927,0.8024,1587.1,1586.9,3.67549]
[1744852810126,2.06266,1587.1,1587.0,1.6002]
[1744852810337,3.73696,1587.1,1587.0,2.86054]
[1744852810633,3.73696,1587.1,1587.0,1.6002]
[1744852810827,3.73696,1587.1,1587.0,2.86054]
[1744852811132,2.4767,1587.1,1587.0,2.86054]
[1744852811331,4.28345239,1587.2,1587.1,1.26026]
[1744852811531,4.28345239,1587.2,1587.1,2.86046]
[1744852812538,5.54363239,1587.2,1587.1,2.86046]
[1744852812937,5.54363239,1587.2,1587.1,1.6002]
[1744852813129,7.20503239,1587.2,1587.1,1.6002]
[1744852813331,5.54363239,1587.2,1587.1,2.86046]
[1744852813533,4.28345239,1587.2,1587.1,2.86046]
[1744852814541,5.54363239,1587.2,1587.1,2.86046]
[1744852814937,4.28345239,1587.2,1587.1,2.86046]
[1744852816137,5.54363239,1587.2,1587.1,2.86046]
[1744852816639,4.28345239,1587.2,1587.1,2.86046]
[1744852818137,4.28345239,1587.2,1587.1,3.3563477]
[1744852818637,0.00945239,1587.2,1587.1,3.3563477]
[1744852818839,0.00945239,1587.2,1587.1,3.3561143]
[1744852819236,0.00945239,1587.2,1587.1,3.35609891]
[1744852820941,0.00945239,1587.2,1587.1,3.35581581]
[1744852822035,0.00945239,1587.2,1587.1,11.56361581]
[1744852822235,0.00945239,1587.2,1587.1,13.15573056]
[1744852822433,3.2078,1587.7,1587.4,1.26002]
[1744852822636,5.9518,1587.9,1587.8,1.2597]
[1744852822938,4.273,1587.9,1587.8,1.2597]
[1744852823136,13.40699666,1588.1,1588.0,1.25954]
[1744852823439,12.59729666,1588.1,1588.0,1.25954]
[1744852823645,12.59729666,1588.1,1588.0,1.7535984]
[1744852823939,12.59729666,1588.1,1588.0,5.2065984]
[1744852824641,0.00945239,1588.2,1588.1,1.25946]
[1744852824837,0.00945239,1588.2,1588.1,2.90456]
[1744852825844,0.00945239,1588.2,1588.1,43.70456]
[1744852837843,0.00945239,1588.2,1588.1,42.4451]
[1744852838049,9.27945239,1588.2,1587.9,0.00945239]
[1744852838244,5.95855239,1588.2,1587.9,2.96584239]
[1744852838450,2.5088,1588.1,1588.0,1.25954]
[1744852838652,2.5088,1588.1,1588.0,2.95634]
[1744852839854,3.76826,1588.1,1588.0,2.95634]
[1744852840055,2.5088,1588.1,1588.0,2.95634]
[1744852840947,0.8297,1588.1,1588.0,2.95634]
[1744852841154,4.27945239,1588.2,1588.1,1.25946]
[1744852841450,5.53883239,1588.2,1588.1,1.6576]
[1744852841646,6.02495239,1588.2,1588.1,2.91706]
[1744852841954,7.28433239,1588.2,1588.1,2.91706]
[1744852842255,7.28433239,1588.2,1588.1,1.6576]
[1744852842850,1.25946,1588.1,1588.0,1.25949]
[1744852843051,2.85866,1588.1,1588.0,1.25949]
[1744852843550,1.5992,1588.1,1588.0,1.25949]
[1744852843947,2.85869,1588.1,1587.9,2.88742239]
[1744852844356,2.85869,1588.1,1588.0,1.25954]
[1744852844560,1.5992,1588.1,1588.0,42.05954]
[1744852846156,4.807,1588.1,1587.9,0.00945239]
[1744852846359,1.25954,1588.0,1587.9,0.00945239]
[1744852846658,3.69264,1588.0,1587.9,0.00945239]
[1744852846861,2.4331,1588.0,1587.9,1.26907239]
[1744852848357,3.69264,1588.0,1587.9,1.26907239]
[1744852849061,3.69264,1588.0,1587.9,0.00945239]
[1744852850059,3.69264,1588.0,1587.9,1.26907239]
[1744852850561,2.4331,1588.0,1587.9,1.26907239]
[1744852851261,2.4331,1588.0,1587.9,1.76382368]
[1744852851464,2.4331,1588.0,1587.9,1.26907239]
[1744852851661,2.4331,1588.0,1587.9,1.76383173]
[1744852852059,3.69264,1588.0,1587.9,1.76383173]
[1744852852764,3.69264,1588.0,1587.9,0.50421173]
[1744852852961,1.2597,1587.8,1587.7,1.25978]
[1744852853162,1.2597,1587.8,1587.7,0.49528562]
[1744852853358,1.25978,1587.7,1587.6,3.01632]
[1744852853555,2.11508,1587.7,1587.6,3.51164486]
[1744852853757,2.11508,1587.7,1587.6,0.49532486]
[1744852853955,2.11511,1587.7,1587.5,1.25994]
[1744852854164,0.8553,1587.7,1587.6,1.75522179]
[1744852854664,9.59085,1587.9,1587.6,0.49536179]
[1744852854964,6.38305,1587.9,1587.7,3.51129836]
[1744852855163,6.38305,1587.9,1587.8,1.7686]
[1744852855358,1.2597,1587.8,1587.7,1.25972]
[1744852855557,0.8243,1587.8,1587.7,3.02832]
[1744852855764,2.084,1587.8,1587.7,3.02832]
[1744852856668,2.084,1587.8,1587.7,3.02838]
[1744852857165,2.084,1587.8,1587.7,1.7686]
[1744852858067,2.084,1587.8,1587.7,3.02838]
[1744852859265,0.8534,1587.9,1587.8,1.2597]
[1744852859569,5.1234,1587.9,1587.8,2.9027]
[1744852859768,2.11302,1587.9,1587.8,1.643]
[1744852860068,6.38302,1587.9,1587.8,1.643]
[1744852861265,5.1234,1587.9,1587.8,2.9027]
[1744852861570,6.38302,1587.9,1587.8,1.643]
[1744852862165,6.38302,1587.9,1587.8,2.9027]
[1744852862471,6.38302,1587.9,1587.8,1.643]
[1744852862773,5.1234,1587.9,1587.8,2.9027]
[1744852864469,5.1234,1587.9,1587.8,3.39759485]
[1744852864670,4.27,1587.9,1587.8,3.39759485]
[1744852865357,4.27,1587.9,1587.8,3.39746012]
[1744852867271,5.134,1588.1,1588.0,1.25954]
[1744852867872,5.134,1588.1,1588.0,2.88244]
[1744852868373,6.39346,1588.1,1588.0,2.88244]
[1744852870476,6.39346,1588.1,1588.0,1.6229]
[1744852872778,1.25967,1587.9,1587.7,0.8329]
[1744852873071,1.25967,1587.9,1587.8,2.19318255]
[1744852873072,4.46747,1587.9,1587.8,2.19318255]
[1744852873477,5.29727,1587.9,1587.8,2.19318255]
[1744852873883,1.25986,1587.6,1587.5,0.00945239]
[1744852874070,5.52986,1587.6,1587.5,0.50521745]
[1744852874564,8.11716,1587.6,1587.5,0.50534467]
[1744852875375,8.11716,1587.6,1587.5,0.00945239]
[1744852876591,6.8573,1587.6,1587.5,1.7648847]
[1744852876882,5.0998,1587.6,1587.5,3.4233847]
[1744852877074,6.35966,1587.6,1587.5,3.4233847]
[1744852877474,6.35966,1587.6,1587.5,2.92789239]
[1744852877776,6.35966,1587.6,1587.5,3.4234117]
[1744852878484,6.35966,1587.6,1587.5,1.66795239]
[1744852878983,5.52986,1587.6,1587.5,3.42346812]
[1744852879177,4.27,1587.6,1587.5,3.42346812]
[1744852882181,6.49890804,1588.1,1587.5,7.16352812]
[1744852882388,5.5296,1588.0,1587.8,1.25966]
[1744852882683,6.0045,1588.0,1587.9,2.90972]
[1744852882986,7.26404,1588.0,1587.9,1.6501]
[1744852883985,7.26404,1588.0,1587.9,2.90972]
[1744852884196,6.0045,1588.0,1587.9,2.90972]
[1744852884581,4.27,1588.0,1587.9,2.90972]
[1744852884890,5.52954,1588.0,1587.9,2.90972]
[1744852885179,5.52954,1588.0,1587.9,1.6501]
[1744852885381,5.52954,1588.0,1587.9,2.90972]
[1744852885685,5.52954,1588.0,1587.9,1.6501]
[1744852885986,5.52954,1588.0,1587.9,2.90972]
[1744852886789,4.27,1588.0,1587.9,2.90972]
[1744852887588,4.27845239,1588.2,1588.1,1.25946]
[1744852888288,4.27845239,1588.2,1588.1,2.87396]
[1744852888789,0.00945239,1588.2,1588.1,3.36898731]
[1744852890691,0.00945239,1588.2,1588.1,3.36859616]
[1744852891187,1.25946,1588.1,1587.9,7.0971029]
[1744852891487,4.51634,1588.0,1587.9,7.5557229]
[1744852893586,4.51634,1588.0,1587.9,8.8153429]
[1744852893785,3.2568,1588.0,1587.9,8.8153429]
[1744852894086,3.2568,1588.0,1587.9,9.31033156]
[1744852894292,8.01003239,1588.2,1588.1,1.25946]
[1744852894787,6.75065239,1588.2,1588.1,1.25946]
[1744852894987,6.75065239,1588.2,1588.1,2.99646]
[1744852895187,8.01003239,1588.2,1588.1,2.99646]
[1744852895378,8.81483239,1588.2,1588.1,2.99646]
[1744852895582,8.81483239,1588.2,1588.1,1.737]
[1744852896085,7.55545239,1588.2,1588.1,2.99646]
[1744852896395,5.94635239,1588.2,1588.1,2.99646]
[1744852897092,7.20573239,1588.2,1588.1,1.737]
[1744852897591,8.87753239,1588.2,1588.1,1.737]
[1744852900092,8.87753239,1588.2,1588.1,2.99646]
[1744852901392,8.87753239,1588.2,1588.1,1.737]
[1744852903389,10.76662239,1588.2,1587.8,1.25966]
[1744852903593,1.2597,1587.8,1587.7,1.7122]
[1744852903894,1.25978,1587.7,1587.6,1.25986]
[1744852904095,0.8185,1587.7,1587.6,2.92236]
[1744852904287,0.8185,1587.7,1587.6,3.41791176]
[1744852904487,2.5333,1587.9,1587.7,1.25978]
[1744852904687,3.79294,1587.9,1587.8,1.6625]
[1744852904895,8.06194,1587.9,1587.8,1.6625]
[1744852905196,8.06194,1587.9,1587.8,2.9222]
[1744852905197,5.1467,1587.9,1587.8,2.9222]
[1744852905790,5.1467,1587.9,1587.5,8.08047239]
[1744852905791,5.1467,1587.9,1587.5,0.00945239]
[1744852906094,3.74162,1587.8,1587.6,3.80331824]
[1744852906282,3.74162,1587.8,1587.7,2.15811824]
[1744852906695,2.4819,1587.8,1587.7,3.41789824]
[1744852906892,3.7416,1587.8,1587.7,1.6625]
[1744852907091,3.7416,1587.8,1587.7,2.15815168]
[1744852907301,3.7416,1587.8,1587.7,2.15816471]
[1744852907488,3.7416,1587.8,1587.7,2.15826516]
[1744852907690,3.7416,1587.8,1587.7,1.6625]
[1744852909302,1.25986,1587.6,1587.5,0.00945239]
[1744852909590,5.52886,1587.6,1587.5,0.00945239]
[1744852909784,1.26017,1587.3,1587.1,2.0844]
[1744852909989,4.269,1587.3,1587.2,1.75645014]
[1744852910185,5.5291,1587.3,1587.2,4.28735014]
[1744852910595,5.5291,1587.3,1587.2,4.2871091]
[1744852911301,5.5291,1587.3,1587.2,3.0269291]
[1744852911500,5.5291,1587.3,1587.2,2.5309]
[1744852911797,4.269,1587.3,1587.2,3.79108]
[1744852912698,5.5291,1587.3,1587.2,3.79108]
[1744852912900,5.5291,1587.3,1587.2,2.5309]
[1744852913096,7.2729,1587.3,1587.2,2.5309]
[1744852914193,7.2729,1587.3,1587.2,3.79108]
[1744852914393,6.0128,1587.3,1587.2,3.79108]
[1744852914595,4.269,1587.3,1587.2,3.79108]
[1744852918797,0.00945239,1587.4,1587.3,1.2601]
[1744852919099,0.00945239,1587.4,1587.3,3.765]
[1744852919903,0.00945239,1587.4,1587.3,9.25982295]
[1744852923498,0.00945239,1587.4,1587.3,4.25982295]
[1744852924405,0.00945239,1587.4,1587.3,4.26025881]
[1744852924710,0.00945239,1587.4,1587.3,7.46805881]
[1744852925206,0.00945239,1587.4,1587.3,4.26025881]
[1744852925708,0.00945239,1587.4,1587.3,48.26805881]
[1744852926504,0.00945239,1587.4,1587.3,45.06025881]
[1744852929811,0.00945239,1587.4,1587.3,45.06097441]
[1744852930308,0.00945239,1587.4,1587.3,45.82164835]
[1744852930507,0.00945239,1587.4,1587.3,46.65604729]
[1744852930710,0.00945239,1587.4,1587.3,45.82164835]
[1744852931106,0.00945239,1587.4,1587.3,46.65618209]
[1744852931311,0.00945239,1587.4,1587.3,49.86398209]
[1744852931705,0.00945239,1587.4,1587.3,49.8642034]
[1744852931905,0.00945239,1587.4,1587.3,46.6564034]
[1744852932106,0.00945239,1587.4,1587.3,45.82164835]
[1744852932704,0.00945239,1587.4,1587.3,3.76154835]
[1744852932705,1.26947239,1587.4,1587.3,3.76154835]
[1744852932914,1.26947239,1587.4,1587.3,2.94684835]
[1744852933315,3.90767239,1587.4,1587.3,2.18617441]
[1744852933716,1.2601,1587.3,1587.2,1.26012]
[1744852933915,1.7574,1587.3,1587.2,1.75720002]
[1744852934114,3.0175,1587.3,1587.2,0.49708002]
[1744852934308,1.26018,1587.2,1587.1,7.6015229]
[1744852934614,3.81668,1587.2,1587.1,9.35895314]
[1744852935109,2.5565,1587.2,1587.1,9.35895314]
[1744852937015,2.5565,1587.2,1587.1,9.35881913]
[1744852937710,3.81668,1587.2,1587.1,0.49703623]
[1744852937906,3.81674,1587.2,1587.0,1.26034]
[1744852938107,2.5917,1587.1,1587.0,2.87744]
[1744852938314,0.848,1587.1,1587.0,3.37454185]
[1744852938912,0.848,1587.1,1587.0,3.37458931]
[1744852939112,2.10826,1587.1,1587.0,3.37458931]
[1744852939314,0.848,1587.1,1587.0,3.37458931]
[1744852939513,2.10826,1587.1,1587.0,3.37458931]
[1744852940007,0.848,1587.1,1587.0,3.37458931]
[1744852940718,2.10826,1587.1,1587.0,2.11424931]
[1744852941019,3.87056,1587.1,1587.0,2.11424931]
[1744852941220,2.6103,1587.1,1587.0,3.37458931]
[1744852941911,0.848,1587.1,1587.0,3.37458931]
[1744852942108,2.5779,1587.2,1587.1,1.26026]
[1744852942313,2.07578,1587.2,1587.1,2.25194931]
[1744852942607,2.07578,1587.2,1587.1,1.7548]
[1744852942806,3.83808,1587.2,1587.1,1.7548]
[1744852943012,3.83808,1587.2,1587.1,3.01506]
[1744852943215,2.5779,1587.2,1587.1,3.51191041]
[1744852943423,0.8156,1587.2,1587.1,3.51191041]
[1744852943713,6.37586,1587.3,1587.2,1.26018]
[1744852943907,6.37586,1587.3,1587.2,1.6601]
[1744852944111,3.87286,1587.3,1587.2,1.6601]
[1744852944407,8.14186,1587.3,1587.2,1.6601]
[1744852944611,8.14186,1587.3,1587.2,2.92028]
[1744852945022,0.00945239,1587.4,1587.3,1.2601]
[1744852945218,0.00945239,1587.4,1587.3,4.23898471]
[1744852946119,0.00945239,1587.4,1587.3,4.23865698]
[1744852946522,1.26012,1587.3,1587.1,2.09089]
[1744852946722,2.94018,1587.2,1587.1,1.7151]
[1744852946914,2.94018,1587.2,1587.1,0.49634026]
[1744852947116,7.20918,1587.2,1587.0,3.79038]
[1744852947919,1.7439,1587.1,1587.0,3.79038]
[1744852948117,1.7439,1587.1,1587.0,4.2868081]
[1744852948315,3.00416,1587.1,1587.0,0.4964281]
[1744852948618,1.26034,1587.0,1586.9,3.2078]
[1744852948918,3.00424,1587.0,1586.8,1.26043]
[1744852949119,0.7991,1586.9,1586.8,1.26043]
[1744852949321,0.7991,1586.9,1586.8,3.47220061]
[1744852949521,2.543,1586.9,1586.8,3.47220061]
[1744852949721,1.26052,1586.8,1586.6,11.27089242]
[1744852949929,3.02342,1586.8,1586.7,0.49663751]
[1744852950128,3.02342,1586.8,1586.6,12.93809242]
[1744852950129,1.26057,1586.7,1586.6,10.02757242]
[1744852950318,3.02347,1586.7,1586.6,10.52425783]
[1744852951026,1.7629,1586.7,1586.6,11.78490783]
[1744852951429,1.7629,1586.7,1586.6,11.28822242]
[1744852952133,3.02347,1586.7,1586.6,10.02757242]
[1744852952729,1.7629,1586.7,1586.6,11.28822242]
[1744852952932,1.7629,1586.7,1586.6,2.92785]
[1744852953231,3.02347,1586.7,1586.6,1.6672]
[1744852954628,1.7629,1586.7,1586.5,1.26067]
[1744852954926,6.23134,1586.7,1586.5,2.85387]
[1744852955128,0.8315,1586.6,1586.5,2.85387]
[1744852955329,2.4749,1586.6,1586.5,2.85387]
[1744852955532,6.7429,1586.6,1586.5,2.85387]
[1744852956129,4.268,1586.6,1586.5,2.85387]
[1744852957631,4.268,1586.6,1586.5,3.3494283]
[1744852957826,8.11266,1586.8,1586.6,1.26061]
[1744852958027,8.11266,1586.8,1586.6,3.01141]
[1744852958827,8.11266,1586.8,1586.7,1.7689]
[1744852960841,1.26063,1586.7,1586.5,1.26073]
[1744852961141,2.93053,1586.7,1586.5,3.02963]
[1744852961443,1.26065,1586.6,1586.5,3.02963]
[1744852961639,1.26065,1586.6,1586.4,43.76196]
[1744852962244,1.6699,1586.7,1586.4,43.76195]
[1744852962441,1.26069,1586.6,1586.5,0.49594471]
[1744852962637,1.6699,1586.7,1586.5,1.75663255]
[1744852962638,2.93053,1586.7,1586.5,1.75663255]
[1744852962838,2.93053,1586.7,1586.5,1.26069]
[1744852964240,1.26065,1586.6,1586.5,1.26069]
[1744852964441,2.93053,1586.7,1586.5,1.75658012]
[1744852964641,2.93053,1586.7,1586.5,1.26069]
[1744852967348,2.93053,1586.7,1586.6,1.26065]
[1744852967750,5.0995,1586.8,1586.4,42.5012]
[1744852967954,1.2606,1586.7,1586.5,1.75632769]
[1744852968248,1.2606,1586.7,1586.5,1.2607]
[1744852968447,2.8661,1586.7,1586.5,1.2607]
[1744852968848,2.8661,1586.7,1586.4,42.5012]
[1744852969050,2.8661,1586.7,1586.5,1.75638919]
[1744852969347,2.8661,1586.7,1586.5,1.26068]
[1744852970055,1.26065,1586.6,1586.5,1.26068]
[1744852970352,1.26065,1586.6,1586.5,1.7565269]
[1744852970548,1.26065,1586.6,1586.5,0.4957969]
[1744852970756,3.2078,1586.6,1586.1,13.3143229]
[1744852971054,1.26087,1586.4,1586.3,1.26089]
[1744852971355,1.26087,1586.4,1586.2,2.91341]
[1744852972057,8.84995239,1586.5,1586.3,1.26089]
[1744852972253,5.53925239,1586.5,1586.2,1.6525]
[1744852972453,5.53925239,1586.5,1586.4,1.26081]
[1744852973453,0.00945239,1586.5,1586.4,1.26081]
[1744852973661,0.00945239,1586.5,1586.4,1.75655563]
[1744852974555,0.00945239,1586.5,1586.4,1.75643133]
[1744852976358,0.00945239,1586.5,1586.4,2.59184222]
[1744852976757,0.00945239,1586.5,1586.4,3.35380633]
[1744852981049,5.5275,1586.8,1586.6,1.26058]
[1744852981251,8.92045,1586.9,1586.7,3.46279133]
[1744852981456,8.92045,1586.9,1586.8,2.20222133]
[1744852982357,8.92045,1586.9,1586.7,0.00945239]
[1744852982358,1.26049,1586.8,1586.7,0.00945239]
[1744852982557,2.99949,1586.8,1586.7,0.50667616]
[1744852982860,2.99949,1586.8,1586.7,1.76726048]
[1744852983059,2.99949,1586.8,1586.7,2.21329048]
[1744852983258,1.654,1586.9,1586.8,1.26049]
[1744852983453,0.00945239,1587.0,1586.9,1.26041]
[1744852983650,0.00945239,1587.0,1586.9,3.45094809]
[1744852984855,0.00945239,1587.0,1586.9,5.04827689]
[1744852985053,0.00945239,1587.0,1586.9,8.25607689]
[1744852985259,5.0682,1587.4,1587.2,1.26011]
[1744852985563,7.14302,1587.4,1587.3,1.6933]
[1744852985763,7.585,1587.4,1587.3,2.9534]
[1744852985953,5.883,1587.4,1587.3,2.9534]
[1744852987055,7.14302,1587.4,1587.3,1.6933]
[1744852988163,0.00945239,1587.5,1587.3,1.6933]
[1744852988359,0.00945239,1587.5,1587.4,1.26002]
[1744852988564,0.00945239,1587.5,1587.4,2.90832]
[1744852988962,0.00945239,1587.5,1587.4,3.40330383]
[1744852989163,0.00945239,1587.5,1587.4,2.90832]
[1744852989364,0.00945239,1587.5,1587.4,4.55012]
[1744852989861,1.26939239,1587.5,1587.4,3.2901]
[1744852990064,0.00945239,1587.5,1587.4,4.55012]
[1744852996363,1.25969,1587.9,1587.7,1.25977]
[1744852996563,4.72325,1587.8,1587.6,1.25984]
[1744852996768,1.7586,1587.7,1587.6,1.25984]
[1744852997372,3.01838,1587.7,1587.6,1.6839]
[1744852998269,1.25986,1587.6,1587.5,0.00945239]
[1744852998472,10.87147,1587.6,1586.6,11.56817242]
[1744852998672,10.87147,1587.6,1586.8,1.26047]
[1744852998673,3.2078,1587.1,1586.8,1.26047]
[1744852998873,1.6629,1587.0,1586.8,2.98217]
[1744852999173,4.65509,1587.0,1586.8,2.98217]
[1744852999368,1.26041,1586.9,1586.8,1.7217]
[1744852999671,1.26049,1586.8,1586.7,0.00945239]
[1744853000476,5.52549,1586.8,1586.7,0.00945239]
[1744853000778,8.73329,1586.8,1586.7,0.00945239]
[1744853001069,5.52549,1586.8,1586.7,0.00945239]
[1744853006274,8.73329,1586.8,1586.7,0.00945239]
[1744853006470,13.73329,1586.8,1586.7,0.00945239]
[1744853006676,1.26073,1586.5,1586.4,1.6852]
[1744853006872,1.26073,1586.5,1586.4,1.67596145]
[1744853007076,4.266,1586.5,1586.4,2.93671145]
[1744853007375,6.734,1586.7,1586.5,1.26067]
[1744853007682,5.0756,1586.7,1586.6,1.26065]
[1744853007978,5.0756,1586.7,1586.5,2.96137]
[1744853008173,5.0756,1586.7,1586.6,2.96135]
[1744853009377,4.266,1586.7,1586.6,2.96135]
[1744853009585,4.27545239,1586.9,1586.7,1.26057]
[1744853009783,4.27545239,1586.9,1586.7,2.96127]
[1744853010174,4.27545239,1586.9,1586.8,1.7007]
[1744853011686,4.27545239,1586.9,1586.8,2.96119]
[1744853012476,0.00945239,1586.9,1586.8,2.96119]
[1744853013084,0.00945239,1586.9,1586.8,3.45569118]
[1744853013287,0.00945239,1586.9,1586.8,8.45569118]
[1744853014779,1.26002,1587.4,1587.2,1.26012]
[1744853015083,1.26005,1587.4,1587.2,1.26015]
[1744853015283,3.2078,1587.7,1587.3,1.6144]
[1744853015582,16.37243666,1587.8,1587.6,1.25986]
[1744853015785,16.37243666,1587.8,1587.7,1.6144]
[1744853016078,12.59729666,1587.8,1587.7,2.87418]
[1744853016276,12.59729666,1587.8,1587.7,11.57571359]
[1744853016477,12.04098046,1587.8,1587.7,15.83971359]
[1744853016678,0.00945239,1587.9,1587.8,1.2597]
[1744853016884,0.00945239,1587.9,1587.8,2.60873359]
[1744853017185,0.00945239,1587.9,1587.8,2.115]
[1744853017387,0.00945239,1587.9,1587.8,2.60819642]
[1744853017586,0.00945239,1587.9,1587.8,2.115]
[1744853027995,0.00945239,1587.9,1587.8,3.7273]
[1744853028293,0.00945239,1587.9,1587.8,4.5314]
[1744853030093,0.00945239,1587.9,1587.8,1.6123]
[1744853030295,0.00945239,1587.9,1587.5,3.21725239]
[1744853030296,1.2598,1587.7,1587.5,1.26935239]
[1744853030592,3.00946,1587.6,1587.5,0.00945239]
[1744853030803,3.88286,1587.6,1587.5,0.00945239]
[1744853031294,2.623,1587.6,1587.5,0.00945239]
[1744853031495,2.623,1587.6,1587.5,1.26939239]
[1744853031899,2.623,1587.6,1587.5,0.00945239]
[1744853032097,2.623,1587.6,1587.5,1.26939239]
[1744853032490,3.88286,1587.6,1587.5,0.00945239]
[1744853032800,2.623,1587.6,1587.5,1.26939239]
[1744853033499,4.262,1587.7,1587.6,1.25986]
[1744853033797,1.7289,1587.8,1587.7,1.25978]
[1744853036007,1.7289,1587.8,1587.7,2.86838]
[1744853036409,5.13125239,1587.9,1587.8,1.2597]
[1744853036608,0.86925239,1587.9,1587.8,2.8683]
[1744853037112,0.00945239,1587.9,1587.8,2.8683]
[1744853039512,1.62595239,1587.9,1587.8,2.8683]
[1744853039713,1.62595239,1587.9,1587.8,1.2597]
[1744853041316,2.88558239,1587.9,1587.7,2.90362]
[1744853041612,2.88558239,1587.9,1587.7,1.25972]
[1744853041808,1.6232,1587.8,1587.7,1.25972]
[1744853044110,10.35172,1587.8,1587.6,1.25982]
[1744853044322,2.09913,1587.7,1587.5,2.89955239]
[1744853044513,0.8529,1587.6,1587.5,1.26935239]
[1744853044716,2.5943,1587.6,1587.5,1.7664493]
[1744853044912,2.5943,1587.6,1587.5,3.4266493]
[1744853045114,0.8393,1587.7,1587.6,1.25986]
[1744853045411,0.8393,1587.7,1587.6,3.41715691]
[1744853045618,2.5807,1587.7,1587.6,3.41715691]
[1744853046416,7.4688,1587.8,1587.7,1.25978]
[1744853046616,7.4688,1587.8,1587.7,3.41707691]
[1744853047815,8.7285,1587.8,1587.7,0.49709691]
[1744853048111,10.3881,1587.8,1587.7,0.49699668]
[1744853048318,10.3881,1587.8,1587.6,2.86551]
[1744853048517,1.6596,1587.7,1587.6,2.86551]
[1744853048720,1.6596,1587.7,1587.6,3.36262228]
[1744853049219,7.4688,1587.8,1587.7,1.25978]
[1744853049420,0.00945239,1587.9,1587.8,1.2597]
[1744853049720,0.00945239,1587.9,1587.8,4.20332565]
[1744853050918,0.00945239,1587.9,1587.8,5.03908887]
[1744853051219,0.00945239,1587.9,1587.8,4.20332565]
[1744853051923,0.00945239,1587.9,1587.8,5.03917433]
[1744853052124,0.00945239,1587.9,1587.8,5.80141232]
[1744853052324,0.00945239,1587.9,1587.8,4.96556364]
[1744853052518,0.00945239,1587.9,1587.8,4.20332565]
[1744853053018,0.00945239,1587.9,1587.8,4.2032688]
[1744853053219,0.00945239,1587.9,1587.8,2.9435688]
[1744853053417,1.71055239,1587.9,1587.8,4.2032688]
[1744853054322,0.00945239,1587.9,1587.8,4.2032688]
[1744853054722,0.00945239,1587.9,1587.8,4.20331019]
[1744853055119,1.71055239,1587.9,1587.8,4.20331019]
[1744853056225,0.00945239,1587.9,1587.8,4.20331019]
[1744853057929,0.00945239,1587.9,1587.8,4.96593137]
[1744853058425,0.00945239,1587.9,1587.8,4.96608577]